Cogmind - Beta 13 @@@ ROGUE MODE // 2024.04.21 @ 20:51:19 Player: Cwaftwer Result: Destroyed by ED-FFP(z) with Makeshift Hammer Performance ------------- Evolutions (1) 500 Regions Visited (4) 800 Robots Destroyed (17) 85 Value Destroyed (508) 508 Prototype IDs (7) 140 Alien Tech Used (0) 0 Bonus (468) 468 TOTAL SCORE: 2501 Bonus ------- Met Imprinter 300 Was Imprinted 300 Friendly Fire -132 Cogmind --------- Core Integrity 0/400 Matter 278/300 Energy 31/100 System Corruption 1% Temperature Cool (0) Movement Core (150) Ox2 Location -7/Zion Parts ------- > --- POWER (2) -------- (None) > --- PROPULSION (2) --- (None) > --- UTILITY (3) ------ (None) > --- WEAPON (2) ------- Slug Cannon > --- INVENTORY (5) ---- Wheel Light Cannon Peak State ------------ > --- POWER ------------ Light Ion Engine Light Ion Engine > --- PROPULSION ------- Armored Huge Wheel > --- UTILITY ---------- Heat Sink Weight Redist. System Hacking Drone Bay > --- WEAPON ----------- Proton Missile Launcher Flail > --- INVENTORY -------- Wheel Medium Armor Plating Light Cannon Slug Cannon [Rating: 28] Favorites ----------- Power Light Ion Engine Engine Light Ion Engine Propulsion Wheel Wheel Wheel Hover Unit Hover Unit Flight Unit Flight Unit Utility Heat Sink Device Heat Sink Processor Signal Interpreter Protection Power Shielding Weapon Medium Laser Energy Gun Medium Laser Ballistic Cannon Slug Cannon Launcher Proton Missile Launcher Impact Weapon Flail Build | -11 -10 -9 -9 -7 ------- Run | Yrd Mat Mat Min Zio Slots Evolved 2 | . . 2 . . Power 1 | . . 1 . . Propulsion . | . . . . . Utility 1 | . . 1 . . Weapon . | . . . . . Parts Attached 27 | 2 7 8 3 7 Power 3 | . 2 1 . . Engine 3 | . 2 1 . . Core . | . . . . . Reactor . | . . . . . Propulsion 7 | . 4 . 2 1 Treads . | . . . . . Leg . | . . . . . Wheel 3 | . . . 2 1 Hover 1 | . 1 . . . Flight 3 | . 3 . . . Utility 7 | . 1 2 1 3 Device 3 | . . 2 . 1 Storage . | . . . . . Processor 1 | . 1 . . . Hackware . | . . . . . Protection 3 | . . . 1 2 Artifact . | . . . . . Weapon 10 | 2 . 5 . 3 Energy Gun 7 | 2 . 5 . . Energy Cannon . | . . . . . Ballistic Gun . | . . . . . Ballistic Cannon 1 | . . . . 1 Launcher 1 | . . . . 1 Special Weapon . | . . . . . Impact Weapon 1 | . . . . 1 Slashing Weapon . | . . . . . Piercing Weapon . | . . . . . Special Melee Weapon . | . . . . . Unidentified Prototypes 1 | . . . . 1 Parts Lost 10 | . . 3 . 7 Power 2 | . . . . 2 Propulsion 3 | . . 2 . 1 Utility 3 | . . 1 . 2 Weapon 2 | . . . . 2 Highest Loss Streak 6 | . . 2 . 6 To Critical Strikes . | . . . . . Average Slot Usage (%) 77 | . 47 63 79 90 Engine 17 | . 6 12 22 20 Wheel 8 | . . . 9 14 Device 22 | . . 18 22 29 Processor 3 | . 6 9 . . Protection 2 | . . . 4 3 Energy Gun 15 | . 27 21 22 7 Launcher 1 | . . . . 4 Impact Weapon 4 | . . . . 10 Naked Turns . | . . . . . Heaviest Build 18 | 3 6 12 13 18 Greatest Support 34 | 3 8 9 26 34 Greatest Overweight (x) 2 | . 1 2 1 2 Average Overweight (x) . | . . 1 . . Largest Inventory Capacity 5 | 5 5 5 5 5 Average Capacity 5 | 5 5 5 5 5 Most Carried 5 | 3 5 5 5 5 Average Carried 4 | 2 4 4 4 4 Final Capacity 5 | 5 5 5 5 5 Final Carried 5 | 3 5 5 4 2 Class Distribution -------------------- 88% | Mutant 11% | Scavenger-Mutant Dominant Class ---------------- Mutant | -10/Materials Mutant | -9/Materials Mutant | -9/Mines Mutant | -7/Zion Resources | -11 -10 -9 -9 -7 ----------- Run | Yrd Mat Mat Min Zio Matter Collected 466 | 220 50 90 28 78 Remotely . | . . . . . Salvage Created 692 | . 83 209 103 297 Parts 33 | . 12 11 6 4 Haulers Intercepted . | . . . . . Recyclers Shooed 1 | . . . 1 . Parts Field Recycled . | . . . . . Retrieved Matter . | . . . . . Parts Self-Destructed . | . . . . . Prevented . | . . . . . Kills | -11 -10 -9 -9 -7 ------- Run | Yrd Mat Mat Min Zio Combat Hostiles Destroyed 13 | . 4 5 . 4 Guns 9 | . 4 5 . . Classes Destroyed 10 | . 3 1 2 4 Worker 1 | . . . 1 . Recycler 1 | . . . 1 . Watcher 1 | . 1 . . . Swarmer 3 | . 3 . . . Grunt 5 | . 1 4 . . Sentry 1 | . . 1 . . Zionite 1 | . . . . 1 Tinkerer 1 | . . . . 1 Butcher 1 | . . . . 1 Mutant 3 | . . . . 3 Best Kill Streak 5 | . 3 3 1 5 Combat Bots Only 3 | . 3 3 . 3 Max Kills in Single Turn 1 | . 1 1 1 1 Gunslinging . | . . . . . Exploded . | . . . . . Melee . | . . . . . Uniques/NPCs Destroyed . | . . . . . Combat | -11 -10 -9 -9 -7 -------- Run | Yrd Mat Mat Min Zio Hostile Shots Fired 102 | . 8 17 . 77 Missed 30 | . 6 4 . 20 Damage Taken 1241 | . 20 220 . 1001 Core 461 | . 10 76 . 375 Absorbed by Shields . | . . . . . Core Remaining (%) 98 | 100 96 . . . Volleys Fired 32 | . 8 16 2 6 Largest 2 | . 2 2 2 1 Hottest 106 | . 90 106 106 50 Shots Fired 58 | . 15 32 5 6 Gun 53 | . 15 32 5 1 Cannon 2 | . . . . 2 Launcher 3 | . . . . 3 Special . | . . . . . Kinetic 2 | . . . . 2 Thermal 47 | . 15 26 5 1 Explosive . | . . . . . Electromagnetic 9 | . . 6 . 3 Robot Hit Streak 11 | . 4 11 6 5 Robot Miss Streak 1 | . 1 1 1 1 Penetration Max . | . . . . . Secondary Targets . | . . . . . Shots Hit Robots 53 | . 10 27 4 12 Core Hits 22 | . 6 11 3 2 Critical Kills . | . . . . . Critical Parts Destroyed 5 | . . . . 5 Critical Strikes 7 | . . 2 . 5 Burn 2 | . . 2 . . Smash 5 | . . . . 5 Melee Attacks 12 | . . . . 12 Impact 12 | . . . . 12 Slashing . | . . . . . Piercing . | . . . . . Sneak Attacks 2 | . . . . 2 Combat Hostiles . | . . . . . Follow-up Attacks . | . . . . . Damage Inflicted 1110 | . 118 396 55 541 Guns 569 | . 118 396 55 . Cannons 30 | . . . . 30 Explosions 219 | . . . . 219 Melee 292 | . . . . 292 Ramming . | . . . . . Kinetic 30 | . . . . 30 Thermal 462 | . 118 289 55 . Explosive . | . . . . . Electromagnetic 326 | . . 107 . 219 Impact 292 | . . . . 292 Slashing . | . . . . . Piercing . | . . . . . Highest Corruption 1 | . . 1 1 1 Average Corruption 1 | . . 1 1 1 Corruption Purged . | . . . . . Corruption Blocked . | . . . . . Effects 7 | . . 1 4 2 Message Errors 1 | . . . 1 . Matter Fused 2 | . . 1 . 1 Heat Flow Errors 1 | . . . 1 . Parts Fused 1 | . . . . 1 Data Loss (major) 1 | . . . 1 . Misfires 1 | . . . 1 . Overload Shots . | . . . . . Overflow Damage 278 | . . . . 278 Projectiles . | . . . . . Explosions 18 | . . . . 18 Melee 260 | . . . . 260 Knockbacks 1 | . . . . 1 Impact . | . . . . . Kinetic 1 | . . . . 1 Secondary . | . . . . . Self-Inflicted Damage 46 | . . 33 . 13 Shots 3 | . . 1 . 2 Rammed . | . . . . . Targets Rammed . | . . . . . Kicked . | . . . . . Crushed . | . . . . . Highest Temperature 273 | . 118 273 152 37 Average Temperature 78 | . 52 104 50 17 Received Heat Transfer 373 | . . 75 . 298 Effects 1 | . . 1 . . Energy Bleed 1 | . . 1 . . Siege Activations . | . . . . . Robots Corrupted 3 | . . . . 3 Combat Hostiles 2 | . . . . 2 Parts Fried 7 | . . . . 7 Impact Corruptions 12 | . . . . 12 Robots Melted . | . . . . . Combat Hostiles . | . . . . . Parts Melted 2 | . . 2 . . Heat Transferred 1432 | . 322 962 148 . Parts Sabotaged . | . . . . . Parts Stolen . | . . . . . Parts Stripped . | . . . . . Power Chain Reactions 1 | . . 1 . . Alert | -11 -10 -9 -9 -7 ------- Run | Yrd Mat Mat Min Zio Peak Influence 144 | . 142 144 66 . Initial 59 | . . 59 22 . Average 61 | . 37 91 32 . Maximum Alert Level . | . . . . . Low Security (%) 100 | 100 100 100 100 . Level 1 . | . . . . . Level 2 . | . . . . . Level 3 . | . . . . . Level 4 . | . . . . . Level 5 . | . . . . . High Security . | . . . . . Max Security . | . . . . . Squads Dispatched 2 | . . 2 . . Investigation 1 | . . 1 . . Extermination . | . . . . . Reinforcement 1 | . . 1 . . Assault . | . . . . . Garrison . | . . . . . Intercept . | . . . . . Searches Triggered . | . . . . . Construction Impeded . | . . . . . Haulers Reinforced . | . . . . . Active Scanning Responses . | . . . . . Cargo Convoy Interrupts . | . . . . . Stealth | -11 -10 -9 -9 -7 --------- Run | Yrd Mat Mat Min Zio Distress Signals 1 | . 1 . . . Communications Jammed . | . . . . . Distress Signals . | . . . . . Times Spotted 33 | . 5 7 . 21 Peak Tracking Total 12 | . 3 3 . 12 Tactical Retreats 4 | . 1 . . 3 Traps | -11 -10 -9 -9 -7 ------- Run | Yrd Mat Mat Min Zio Traps Triggered 2 | . 1 1 . . Indirectly . | . . . . . Trap Hack Attempts . | . . . . . Triggered . | . . . . . Disarmed . | . . . . . Reprogrammed . | . . . . . Reused . | . . . . . Traps Extracted . | . . . . . Installed . | . . . . . Triggered . | . . . . . Machines | -11 -10 -9 -9 -7 ---------- Run | Yrd Mat Mat Min Zio Machines Disabled . | . . . . . Max in Single Turn . | . . . . . Machines Repaired . | . . . . . Machines Dismantled . | . . . . . Machines Sabotaged . | . . . . . Overloaded Fab Kills . | . . . . . Hacking | -11 -10 -9 -9 -7 --------- Run | Yrd Mat Mat Min Zio Machines Accessed 5 | . 1 3 1 . Terminals 5 | . 1 3 1 . Fabricators . | . . . . . Repair Stations . | . . . . . Recycling Units . | . . . . . Scanalyzers . | . . . . . Garrison Access . | . . . . . Total Hacks 23 | . 3 14 6 . Successful 11 | . 1 8 2 . Failed 12 | . 2 6 4 . Catastrophic 1 | . . 1 . . Database Lockouts . | . . . . . Manual 3 | . . . . 3 Terminals 23 | . 3 14 6 . Fabricators . | . . . . . Repair Stations . | . . . . . Recycling Units . | . . . . . Scanalyzers . | . . . . . Garrison Access . | . . . . . Terminal Hacks 11 | . 1 8 2 . Record 1 | . . . 1 . Robot Analysis 1 | . . 1 . . Prototype ID Bank 4 | . 1 3 . . Branch Access Points 1 | . . 1 . . Alert Level 2 | . . 2 . . Dispatch Records 1 | . . . 1 . Hauler Manifests 1 | . . 1 . . Fabricator Hacks . | . . . . . Repair Station Hacks . | . . . . . Recycling Unit Hacks . | . . . . . Scanalyzer . | . . . . . Garrison Access Hacks . | . . . . . Unauthorized Hacks . | . . . . . Terminals . | . . . . . Fabricators . | . . . . . Repair Stations . | . . . . . Recycling Units . | . . . . . Scanalyzers . | . . . . . Garrison Access . | . . . . . Data Cores Recovered . | . . . . . Used . | . . . . . Hacking Detections 4 | . 1 2 1 . Full Trace Events . | . . . . . Feedback Events . | . . . . . Feedback Blocked . | . . . . . Robot Schematics Acquired 4 | . . . . 4 Robots Built . | . . . . . Authchips . | . . . . . Time . | . . . . . Total Robot Build Rating . | . . . . . Part Schematics Acquired 15 | . . . . 15 Parts Built . | . . . . . Authchips . | . . . . . Time . | . . . . . Total Part Build Rating . | . . . . . Parts Repaired . | . . . . . Time . | . . . . . Parts Recycled . | . . . . . Recycled Matter . | . . . . . Retrieved Matter . | . . . . . Retrieved Components . | . . . . . Parts Scanalyzed . | . . . . . Part Schematics Acquired . | . . . . . Parts Damaged . | . . . . . Bothacking | -11 -10 -9 -9 -7 ------------ Run | Yrd Mat Mat Min Zio Used RIF Installer . | . . . . . Robots Hacked . | . . . . . Non-combat . | . . . . . Combat . | . . . . . Robot Hacks Applied . | . . . . . Relay Couplers Released . | . . . . . Fabnet Peak Effective % . | . . . . . Robots Rewired . | . . . . . Allies Hacked . | . . . . . Hacks Repelled . | . . . . . Allies | -11 -10 -9 -9 -7 -------- Run | Yrd Mat Mat Min Zio Total Allies 6 | . . . . 6 Largest Group 6 | . . . . 6 Highest-Rated Group 214 | . . . . 214 Highest-Rated Ally 41 | . . . . 41 Total Orders . | . . . . . Ally Attacks . | . . . . . Total Damage . | . . . . . Kills . | . . . . . Allies Corrupted . | . . . . . Allies Melted . | . . . . . Intel | -11 -10 -9 -9 -7 ------- Run | Yrd Mat Mat Min Zio Robot Analysis Total 1 | . . 1 . . Derelict Logs Recovered 4 | . . . 2 2 Drone Launches 1 | . . . . 1 Drone Recoveries 1 | . . . . 1 Exploration | -11 -10 -9 -9 -7 ------------- Run | Yrd Mat Mat Min Zio Turns Passed 2268 | 34 179 635 443 977 Spaces Moved 1523 | 54 97 139 267 966 Core 407 | 54 57 121 164 11 Treads . | . . . . . Legs . | . . . . . Wheels 1058 | . . . 103 955 Hover 13 | . 13 . . . Flight 45 | . 27 18 . . Fastest Speed 37 | 50 37 37 80 50 Average Speed 88 | 50 50 108 92 91 Slowest Speed 150 | 50 120 150 100 150 Overloaded Moves . | . . . . . Propulsion Burnouts . | . . . . . Robots Hopped . | . . . . . Cave-ins Triggered 1 | . . 1 . . Exploration Rate (%) 33 | 3 23 13 50 79 Regions Visited 4 Branch Regions 2 Pre-discovered Areas 1 | . . . . 1 Known Exits Taken 2 | . 1 1 . . Unknown Exits Taken 2 | 1 . . 1 . Scrap Searched 5 | . . . 1 4 Spaces Dug . | . . . . . Terrain Destroyed 2 | . . 2 . . Melee . | . . . . . Projectile . | . . . . . AOE 2 | . . 2 . . Terrain Rammed . | . . . . . Walls Destroyed . | . . . . . Machines Disabled . | . . . . . Actions | -11 -10 -9 -9 -7 --------- Run | Yrd Mat Mat Min Zio Total 2364 | 60 211 591 463 1039 Wait 718 | . 90 419 180 29 Move 1519 | 53 96 138 266 966 Hop . | . . . . . Pick Up 37 | 5 9 7 7 9 Fast Attach . | . . . . . Attach 19 | 2 6 4 3 4 Detach . | . . . . . Swap 8 | . 1 4 . 3 Drop 19 | . 1 3 5 10 Fire 32 | . 8 16 2 6 Melee 12 | . . . . 12 Ram . | . . . . . Kick . | . . . . . Crush . | . . . . . Escape Stasis . | . . . . . Rewire . | . . . . . Trap . | . . . . . Miscellaneous . | . . . . . Route ------- -11/Scrapyard -10/Materials -9/Materials (discovered 2 exits: *Min x2) -9/Mines (discovered 2 exits: [*Mat] / *Zio) -7/Zion (discovered 2 exits: Dee / [*Pro]) History --------- Turn | Location | Event 2 | -11/Scrapyard | Discovered new exit (range 16) 35 | -11/Scrapyard | Entered Materials 200 | -10/Materials | Discovered new exit (range 16) 205 | -10/Materials | Identified exit to Materials 214 | -10/Materials | Entered another Materials area 214 | -9/Materials | Evolved 2 slots: Power x1, Utility x1 217 | -9/Materials | Identified exit to Mines 305 | -9/Materials | Build established: Mutant 785 | -9/Materials | Crushed by falling debris 849 | -9/Materials | Entered Mines 849 | -9/Mines | Discovered new exit (range 13) 952 | -9/Mines | Met a Derelict bent on vengeance 976 | -9/Mines | A weapon hastily lodged in a ceiling crevice suddenly fell to the ground 1013 | -9/Mines | Found a hidden stash of uninstalled traps 1135 | -9/Mines | Learned Materials interactive machine intel 1283 | -9/Mines | Learned Materials emergency access door positions 1288 | -9/Mines | A Derelict revealed a hidden shortcut to a safe place 1292 | -9/Mines | Entered Zion 1342 | -7/Zion | Learned Factory garrison access intel 1380 | -7/Zion | Discovered new exit (range 13) 1399 | -7/Zion | Found CR-A16's Pointy Stick 1456 | -7/Zion | System corruption cleaned by Quarantine Array 1480 | -7/Zion | Identified exit to Deep Caves 1583 | -7/Zion | Given the Hacking Drone Bay 1587 | -7/Zion | Found Prototype Device 1588 | -7/Zion | Identified Hacking Drone Bay 1782 | -7/Zion | Imprinted 1784 | -7/Zion | Declared Zion's savior 1849 | -7/Zion | Gained Derelict followers 2139 | -7/Zion | Attacked by Zionites 2251 | -7/Zion | Core integrity fell below 50% 2265 | -7/Zion | Core integrity fell below 20% 2269 | -7/Zion | Destroyed by ED-FFP(z) with Makeshift Hammer Last Messages --------------- Machinery. Weight Redist. System blasted off. Knocked back. DZ-OLG(z) bursts out of the Twisted Machinery. 32-29N(z) pulls a Mak. Hammer out of the Twisted Machinery. Critical hit (Burn: +37). Med. Armor Plating destroyed. Hacking Drone Bay blasted off. Knocked back. DZ-OLG(z) pulls a Mak. Sword out of the Twisted Machinery. Knocked back. Critical hit (Burn: +37). AU-R1T(z) pulls a Mak. Hammer out of the Twisted Machinery. Knocked back. 9F-7GV(z) knocked back. Critical hit (Burn: +37). [Achievement: This Is Interesting...] Map ----- +----------------------------------------------------+ | ?????????????????????##""" """"#"""""""" "" | | ?????????????????????#"""" #"" """ " | | ??????????????????????#"" " "" | | ??????????????????????#"" """ | | ???????????????????####"" """ | | ???????????????????#"""" """ | | ???????????????????#""" "" " """ | | ??????????????????##"#" """ "" | | ?????????#####?####"""" """"" """"" | | ??????????"#"###"####" """""" ""#""" | | ??????????#"""#"""#""" """""" | | ??????????" X"""""""#" """""" | | ??????????# """" """" """""" | | ?????????## """ "" """""" """" | | ?????????" """""""" """ | | ?????????" """"" | | ?????????# """ "" | | ?>????#"""""""" "" "" | | ??????#""#""""""" """ z" | | ??????####"""#""" ""#" "" | | ?????????######"""" """"""" "" """" | | ??????????????#""#"""""""""""" " """"""" | | ??????????????######z"""""""" """"""" " | | ???????????????????###"""" #""##"" """" | | ????????????????????###""" """"#""?""""## | | ????????????????????#""""@z%% #""###"????#?? | | ?????????????????#####""%zzzz """"""??????? | | ?????????????????#""#"" % !z """""""""????? | | ?????????????????#"""" z z """""" ""#???? | | ?????????????????##" " ""#???? | | ?????????????????#"" "" "#????? | | ?????????????????#""" "" "" "#????? | | ?????????????????#""""%z "" """ ""#????? | | ????????????????###"""z z"""" "" """ ""##????? | | ????????????????#""""% "##z" "" """#????? | | ????????????????#""" """""" " ""#"#????? | | ????????????????###"" """"" ""##??????? | | ???????????#########" / """#??????? | | ??????????##" #" """" % ""#??????? | | ?????????##" /#""""" "" ""#??????? | | ?????????#]%! "# " "" """"#??????? | | ?????????#! !# """###??????? | | ?????????#" ##" """"#????????? | | ?????????### #"" ""###????????? | | ???????????###"" %! "#??????????? | | ?????????????#"" = ""#?????????? | | ?????????????#"" """ ""#?????????? | | ???????###??####"" """ "#?#????????? | | ????####"####"#""" "" "#"#????????? | | ???##""#"""""""""" """ """##???????? | +----------------------------------------------------+ Best States ------------- Heat Dissipation 38 Energy Generation 15 Energy Capacity 150 Matter Stores 300 Matter Capacity 300 Sight Range 16 Terrain Scan Density 10 Additional Mass Support 6 Armor Coverage 225 Power Shielding 33 Evasion (%) 62 Item Schematics ----------------- Lyr. Light Armor Plating | -7/Zion | Archive Adv. Heat Sink | -7/Zion | Archive Gauss Cannon | -7/Zion | Archive Imp. Reaction Control System | -7/Zion | Archive Hvy. Battle Rifle | -7/Zion | Archive Mak. Hacking Suite | -7/Zion | Archive Lgt. Fission Core | -7/Zion | Archive Neutrino Core | -7/Zion | Archive Imp. Coolant Injector | -7/Zion | Archive Hvy. Ion Cannon | -7/Zion | Archive Imp. Proton Missile Launcher | -7/Zion | Archive Mak. Hammer | -7/Zion | Archive 0b10 Decoder Chip [Scout] | -7/Zion | Archive Remote Datajack | -7/Zion | Archive Focal Shield | -7/Zion | Archive Robot Schematics ------------------ S-27 Virus | -7/Zion | Archive A-02 Transporter | -7/Zion | Archive M-14 Sweeper | -7/Zion | Archive L-61 Swordsman | -7/Zion | Archive Fabricated ------------ Nothing Alien Tech Used ----------------- None Achievements -------------- This Is Interesting... Challenges ------------ None Game ------ Seed LatentDerelictStorage Manual? 0 Play Time 00:26:06 Cumulative 26.8 hours Start 2024.04.21 @ 20:24:29 End 2024.04.21 @ 20:51:19 Sessions 1 Manual Loads 0 Difficulty Rogue Special Mode None Game No. 41 Rogue 40 Adventurer 1 Explorer 0 Win Type - Total 0 Types 0/0/0/0/0/0/0/0/0 Lore% 25 Gallery% 31 Achievement% 26 Wizard Run 0 Options --------- Layout 1 ASCII 0 Keyboard 0 Movement Mouse Keybinds 0 Fullscreen 1 Font 24/Smallcaps Map View 50x40 Zoom Use 0% Tactical HUD 0 Map Filters NONE Filters NONE Steam 1 RUN: d841b594-5881-4c39-8a4c-57caf311ae21